fUSD/lending_fUSD_20240825
["ID","MTS","AMOUNT","RATE_DAILY","PERIOD"]
[335911060,1724586646233,-543.8904456,0.00010989,2]
[335911061,1724586646242,-327.82600187,0.00010989,2]
[335911062,1724586646251,-500.0,0.00010989,2]
[335911063,1724586646260,-500.0,0.00010989,2]
[335911064,1724586646270,-500.0,0.00010989,2]
[335911065,1724586646279,-500.0,0.00010989,2]
[335911066,1724586646290,-517.85710085,0.00010989,2]
[335911067,1724586646299,-500.0,0.00010989,2]
[335911068,1724586646309,-500.0,0.00010989,2]
[335911069,1724586646319,-500.0,0.00010989,2]
[335911070,1724586646328,-210.66282899,0.00010989,2]
[335911071,1724586646338,-500.0,0.00010989,2]
[335911072,1724586646347,-500.0,0.00010989,2]
[335911073,1724586646356,-210.78,0.00010989,2]
[335911074,1724586646365,-500.0,0.00010989,2]
[335911075,1724586646375,-500.0,0.00010989,2]
[335911076,1724586646384,-500.0,0.00010989,2]
[335911077,1724586646393,-334.72,0.00010989,2]
[335911078,1724586646402,-500.0,0.00010989,2]
[335911079,1724586646411,-500.0,0.00010989,2]
[335911080,1724586646421,-500.0,0.00010989,2]
[335911081,1724586646430,-500.0,0.00010989,2]
[335911082,1724586646439,-500.0,0.00010989,2]
[335911083,1724586646448,-500.0,0.00010989,2]
[335911084,1724586646457,-317.93765527,0.00010989,2]
[335911085,1724586646466,-500.0,0.00010989,2]
[335911086,1724586646476,-500.0,0.00010989,2]
[335911087,1724586646485,-500.0,0.00010989,2]
[335911088,1724586646495,-500.0,0.00010989,2]
[335911089,1724586646504,-500.0,0.00010989,2]
[335911090,1724586646513,-500.0,0.00010989,2]
[335911091,1724586646523,-152.80163281,0.00010989,2]
[335911092,1724586646532,-500.0,0.00010989,2]
[335911093,1724586646541,-529.79335145,0.00010989,2]
[335911094,1724586646551,-500.0,0.00010989,2]
[335911095,1724586646559,-500.0,0.00010989,2]
[335911096,1724586646569,-500.0,0.00010989,2]
[335911097,1724586646579,-222.05,0.00010989,2]
[335911098,1724586646589,-500.0,0.00010989,2]
[335911099,1724586646599,-284.27,0.00010989,2]
[335911100,1724586646608,-500.0,0.00010989,2]
[335911101,1724586646618,-500.0,0.00010989,2]
[335911102,1724586646628,-500.0,0.00010989,2]
[335911103,1724586646637,-500.0,0.00010989,2]
[335911104,1724586646646,-500.0,0.00010989,2]
[335911105,1724586646656,-521.6524171,0.00010989,2]
[335911106,1724586646665,-535.44260754,0.00010989,2]
[335911107,1724586646674,-228.99714396,0.00010989,2]
[335911108,1724586646686,-271.00285604,0.00010989,2]
[335911109,1724586646695,-500.0,0.00010989,2]
[335911110,1724586646704,-500.0,0.00010989,2]
[335911111,1724586646716,-500.0,0.00010989,2]
[335911112,1724586646725,-159.07136489,0.00010989,2]
[335911113,1724586646736,-340.92863511,0.00010989,2]
[335911114,1724586646746,-500.0,0.00010989,2]
[335911115,1724586646755,-616.25,0.00010989,2]
[335911116,1724586646764,-616.25,0.00010989,2]
[335911117,1724586646773,-616.25,0.00010989,2]
[335911118,1724586646782,-516.94366179,0.00010989,2]
[335911119,1724586646793,-503.38782706,0.00010989,2]
[335911120,1724586646802,-500.0,0.00010989,2]
[335911121,1724586646811,-500.0,0.00010989,2]
[335911122,1724586646820,-500.0,0.00010989,2]
[335911123,1724586646830,-500.0,0.00010989,2]
[335911124,1724586646839,-606.21285583,0.00010989,2]
[335911125,1724586646848,-87.27702021,0.00010989,2]
[335911126,1724586646860,-472.91721428,0.00010989,2]
[335911127,1724586646869,-500.0,0.00010989,2]
[335911128,1724586646878,-500.0,0.00010989,2]
[335911129,1724586646887,-500.0,0.00010989,2]
[335911130,1724586646896,-560.05,0.00010989,2]
[335911131,1724586646906,-560.05,0.00010989,2]
[335911132,1724586646916,-500.0,0.00010989,2]
[335911133,1724586646925,-560.05,0.00010989,2]
[335911134,1724586646934,-500.0,0.00010989,2]
[335911135,1724586646943,-420.27816658,0.00010989,2]
[335911137,1724586680943,13493.544,9.908e-05,2]
[335911138,1724586719685,1000.0,0.00025,62]
[335911139,1724586778918,500.0,0.00024657,120]
[335911140,1724586779175,500.0,0.00025342,120]
[335911141,1724586779454,500.0,0.00026027,120]
[335911142,1724586779735,500.0,0.00026712,120]
[335911144,1724586800106,500.0,0.00024932,120]
[335911145,1724586806396,200.0,0.00025,120]
[335911147,1724586884107,158.98,7.266e-05,2]
[335911148,1724586909818,200.0,9.999e-05,2]
[335911149,1724586974587,307.03,8.219e-05,2]
[335911153,1724587067266,400.0,9.986e-05,2]
[335911154,1724587100371,646.54,9.995e-05,2]
[335911155,1724587102684,2046.38,9.995e-05,2]
[335911156,1724587109744,1157.46,9.995e-05,2]
[335911157,1724587170413,908.2,9.975e-05,2]
[335911158,1724587259880,693.81147751,9.975e-05,2]
[335911159,1724587264982,340.59471601,9.975e-05,2]
[335911160,1724587294184,10925.56669,9.962e-05,2]
[335911161,1724587305091,250.0,9.973e-05,2]
[335911162,1724587381755,500.0,0.00024657,120]
[335911163,1724587382083,500.0,0.00025342,120]
[335911164,1724587382345,500.0,0.00026027,120]
[335911165,1724587382644,500.0,0.00026712,120]
[335911166,1724587398785,500.0,9.893e-05,2]
[335911167,1724587399170,500.0,0.00024932,120]
[335911168,1724587420771,840.0,9.983e-05,2]
[335911169,1724587481757,1938.95610238,9.925e-05,2]
[335911170,1724587494647,12126.29715151,9.999e-05,2]
[335911171,1724587544792,307.34,8.219e-05,2]
[335911173,1724587639032,215.85,9.966e-05,2]
[335911176,1724587751845,156.4272345,9.999e-05,2]
[335911177,1724587758123,21708.73958939,9.999e-05,2]
[335911178,1724587765763,150.0,9.997e-05,2]
[335911180,1724587793444,3035.12551289,9.999e-05,2]
[335911182,1724587800549,250.0,9.953e-05,2]
[335911183,1724587811432,200.0,9.954e-05,2]
[335911192,1724587838434,-323.27,0.00010001,2]
[335911193,1724587838444,-4171.0,0.00010304,2]
[335911194,1724587838455,-307.34,0.00010475,2]
[335911195,1724587838466,-1735.45450335,0.00010699,2]
[335911196,1724587838479,-229.08333384,0.00010699,2]
[335911197,1724587838489,-185.00937477,0.00010713,2]
[335911198,1724587838499,-1758.76425812,0.00010762,2]
[335911199,1724587838597,-1140.6741053,0.00010762,2]
[335911200,1724587838607,-150.68,0.0001079,2]
[335911201,1724587838618,-150.68,0.0001079,2]
[335911202,1724587838628,-150.68,0.0001079,2]
[335911203,1724587838639,-150.68,0.0001079,2]
[335911204,1724587838649,-150.68,0.0001079,2]
[335911205,1724587838659,-150.68,0.0001079,2]
[335911206,1724587838670,-150.68,0.0001079,2]
[335911207,1724587838681,-150.68,0.0001079,2]
[335911208,1724587838691,-150.68,0.0001079,2]
[335911209,1724587838701,-150.68,0.0001079,2]
[335911210,1724587838711,-150.68,0.0001079,2]
[335911211,1724587838722,-150.68,0.0001079,2]
[335911212,1724587838732,-150.68,0.0001079,2]
[335911213,1724587838742,-150.68,0.0001079,2]
[335911214,1724587838753,-150.68,0.0001079,2]
[335911215,1724587838765,-237381.55916904,0.000108,2]
[335911216,1724587838777,-666.050534,0.000108,2]
[335911229,1724587846292,-384.50318454,0.000107,2]
[335911230,1724587846346,-1886.97391546,0.000107,2]
[335911231,1724587846355,-352.95042201,0.00010731,2]
[335911232,1724587846365,-189.9499311,0.000108,2]
[335911235,1724587899340,448.39744487,8.22e-05,2]
[335911236,1724587917477,328.0,9.963e-05,2]
[335911238,1724587925042,6988.21,9.963e-05,2]
[335911239,1724587995471,621.42,0.00024657,120]
[335911240,1724587995832,621.42,0.00025342,120]
[335911241,1724587996120,621.42,0.00026027,120]
[335911242,1724587996393,621.42,0.00026712,120]
[335911243,1724587999359,500.0,9.883e-05,2]
[335911244,1724587999764,500.0,0.00024932,120]
[335911245,1724588020434,500.0,9.938e-05,2]
[335911249,1724588057685,170.35,9.962e-05,2]
[335911250,1724588068649,291.48,8.219e-05,2]
[335911251,1724588092394,158.98,7.169e-05,2]
[335911252,1724588105622,869.45,9.898e-05,2]
[335911254,1724588246967,10911.75,9.858e-05,2]
[335911255,1724588299191,12522.8114,9.928e-05,2]
[335911256,1724588392339,32925.8725894,9.999e-05,2]
[335911257,1724588393028,155.0,9.999e-05,2]
[335911258,1724588412412,200.0,9.871e-05,2]
[335911259,1724588474198,737.6,9.869e-05,2]
[335911261,1724588517922,11171.59186171,0.0001,10]
[335911262,1724588517948,18998.40813829,0.0001,10]
[335911264,1724588587047,517.85,0.00024657,120]
[335911265,1724588587316,517.85,0.00025342,120]
[335911266,1724588587627,517.85,0.00026027,120]
[335911267,1724588587871,517.85,0.00026712,120]
[335911268,1724588598393,500.0,9.79e-05,2]
[335911269,1724588598787,500.0,0.00024932,120]
[335911270,1724588600421,500.0,0.0001,2]
[335911271,1724588606891,434.72,9.868e-05,2]
[335911272,1724588608399,305.18,8.219e-05,2]
[335911274,1724588631286,211.16220297,0.0001,2]
[335911275,1724588654823,1298.83,9.93e-05,2]
[335911276,1724588711371,155.0,9.999e-05,2]
[335911283,1724588804401,500.0,0.00027,120]
[335911284,1724588806882,500.0,0.00027,120]
[335911285,1724588808358,500.0,0.00027,120]
[335911286,1724588809373,500.0,0.00027,120]
[335911287,1724588812237,500.0,0.00027,120]
[335911288,1724588813922,500.0,0.00027,120]
[335911289,1724588815270,500.0,0.00027,120]
[335911290,1724588816494,500.0,0.00027,120]
[335911293,1724588817965,500.0,0.00027,120]
[335911294,1724588818964,500.0,0.00027,120]
[335911295,1724588820430,500.0,0.00027,120]
[335911296,1724588822079,500.0,0.00027,120]
[335911297,1724588823158,500.0,0.00027,120]
[335911298,1724588824095,500.0,0.00027,120]
[335911300,1724588824994,500.0,0.00027,120]
[335911301,1724588826179,500.0,0.00027,120]
[335911302,1724588842875,500.0,0.00027,120]
[335911303,1724588843696,500.0,0.00027,120]
[335911304,1724588845297,500.0,0.00027,120]
[335911305,1724588846224,500.0,0.00027,120]
[335911306,1724588847383,500.0,0.00027,120]
[335911307,1724588848403,500.0,0.00027,120]
[335911308,1724588849535,500.0,0.00027,120]
[335911309,1724588850639,500.0,0.00027,120]
[335911310,1724588851579,500.0,0.00027,120]
[335911311,1724588852505,500.0,0.00027,120]
[335911312,1724588859339,500.0,0.00027,120]
[335911313,1724588860383,500.0,0.00027,120]
[335911314,1724588861273,500.0,0.00027,120]
[335911315,1724588862174,500.0,0.00027,120]
[335911316,1724588863287,500.0,0.00027,120]
[335911317,1724588864225,500.0,0.00027,120]
[335911318,1724588865253,500.0,0.00027,120]
[335911319,1724588866103,500.0,0.00027,120]
[335911320,1724588866969,500.0,0.00027,120]
[335911321,1724588867832,500.0,0.00027,120]
[335911322,1724588868681,500.0,0.00027,120]
[335911323,1724588869527,500.0,0.00027,120]
[335911324,1724588870460,500.0,0.00027,120]
[335911325,1724588871343,500.0,0.00027,120]
[335911326,1724588872177,500.0,0.00027,120]
[335911327,1724588873526,500.0,0.00027,120]
[335911328,1724588874293,500.0,0.00027,120]
[335911329,1724588875272,500.0,0.00027,120]
[335911330,1724588876188,500.0,0.00027,120]
[335911331,1724588877044,500.0,0.00027,120]
[335911332,1724588877948,500.0,0.00027,120]
[335911333,1724588878804,500.0,0.00027,120]
[335911334,1724588879749,500.0,0.00027,120]
[335911335,1724588880772,500.0,0.00027,120]
[335911336,1724588881621,500.0,0.00027,120]
[335911337,1724588882444,500.0,0.00027,120]
[335911338,1724588883284,500.0,0.00027,120]
[335911339,1724588884097,500.0,0.00027,120]
[335911340,1724588884984,500.0,0.00027,120]
[335911341,1724588885874,500.0,0.00027,120]
[335911342,1724588886618,500.0,0.00027,120]
[335911343,1724588887482,500.0,0.00027,120]
[335911344,1724588888261,500.0,0.00027,120]
[335911345,1724588889069,500.0,0.00027,120]
[335911346,1724588889839,500.0,0.00027,120]
[335911347,1724588891531,500.0,0.00027,120]
[335911348,1724588891841,500.0,0.00027,120]
[335911349,1724588893150,500.0,0.00027,120]
[335911350,1724588894117,500.0,0.00027,120]
[335911351,1724588895126,500.0,0.00027,120]
[335911352,1724588895922,500.0,0.00027,120]
[335911353,1724588896760,500.0,0.00027,120]
[335911354,1724588897562,500.0,0.00027,120]
[335911358,1724588898297,500.0,0.00027,120]
[335911359,1724588899219,500.0,0.00027,120]
[335911360,1724588900074,500.0,0.00027,120]
[335911362,1724588912963,179.4623719,0.00025,60]
[335911363,1724588913527,500.0,0.00027,120]
[335911364,1724588914596,500.0,0.00027,120]
[335911365,1724588915390,500.0,0.00027,120]
[335911366,1724588916235,500.0,0.00027,120]
[335911367,1724588917040,500.0,0.00027,120]
[335911368,1724588917793,500.0,0.00027,120]
[335911369,1724588918605,500.0,0.00027,120]
[335911370,1724588919404,500.0,0.00027,120]
[335911371,1724588920220,500.0,0.00027,120]
[335911372,1724588921026,500.0,0.00027,120]
[335911373,1724588921899,500.0,0.00027,120]
[335911374,1724588922734,500.0,0.00027,120]
[335911375,1724588923595,500.0,0.00027,120]
[335911376,1724588924444,500.0,0.00027,120]
[335911377,1724588925273,500.0,0.00027,120]
[335911378,1724588926227,500.0,0.00027,120]
[335911379,1724588926889,500.0,0.00027,120]
[335911380,1724588927728,500.0,0.00027,120]
[335911381,1724588928618,500.0,0.00027,120]
[335911382,1724588929459,500.0,0.00027,120]
[335911383,1724588930390,500.0,0.00027,120]
[335911384,1724588932190,500.0,0.00027,120]
[335911385,1724588932251,950.41281931,9.909e-05,2]
[335911386,1724588933581,500.0,0.00027,120]
[335911387,1724588934594,500.0,0.00027,120]
[335911388,1724588936374,500.0,0.00027,120]
[335911389,1724588937469,500.0,0.00027,120]
[335911391,1724588948381,500.0,0.00027,120]
[335911392,1724588949808,500.0,0.00027,120]
[335911393,1724588950634,500.0,0.00027,120]
[335911394,1724588951587,500.0,0.00027,120]
[335911395,1724588952631,500.0,0.00027,120]
[335911396,1724588953441,500.0,0.00027,120]
[335911397,1724588954312,500.0,0.00027,120]
[335911398,1724588955166,500.0,0.00027,120]
[335911399,1724588955948,500.0,0.00027,120]
[335911400,1724588956780,500.0,0.00027,120]
[335911401,1724588957554,500.0,0.00027,120]
[335911402,1724588958369,500.0,0.00027,120]
[335911403,1724588959179,409.92,9.855e-05,2]
[335911404,1724588959208,500.0,0.00027,120]
[335911405,1724588959764,1276.0146638,9.999e-05,2]
[335911406,1724588959990,500.0,0.00027,120]
[335911407,1724588960825,500.0,0.00027,120]
[335911408,1724588961688,500.0,0.00027,120]
[335911409,1724588962609,500.0,0.00027,120]
[335911410,1724588963737,500.0,0.00027,120]
[335911411,1724588983490,282.11701483,0.00027,120]
[335911412,1724588996256,155.0,9.999e-05,2]
[335911424,1724589014084,156.38894449,0.0001,2]
[335911425,1724589024720,360.0,9.877e-05,2]
[335911426,1724589026866,155.0,9.999e-05,2]
[335911440,1724589031470,-317.13499877,0.00010009,2]
[335911441,1724589031480,-3406.47446305,0.00010009,2]
[335911442,1724589031490,-419.90727343,0.00010009,2]
[335911443,1724589031499,-155.00000007,0.00010009,2]
[335911444,1724589031509,-300.0,0.00010025,2]
[335911445,1724589031519,-8744.69390815,0.00010026,2]
[335911446,1724589031529,-3035.66705251,0.00010026,2]
[335911447,1724589031538,-173.97,0.00010356,2]
[335911448,1724589031548,-305.18,0.00010469,2]
[335911449,1724589031557,-523.02806141,0.00010505,2]
[335911450,1724589031566,-293.79422022,0.00010566,2]
[335911451,1724589031576,-272.6122,0.000106,2]
[335911452,1724589031585,-1263.0163,0.000106,2]
[335911453,1724589031594,-1362.44,0.000106,2]
[335911454,1724589031604,-707.0328,0.0001069,2]
[335911455,1724589031613,-286.39,0.0001069,2]
[335911456,1724589031623,-1306.44389609,0.0001069,2]
[335911457,1724589031633,-150.0,0.00010698,2]
[335911458,1724589031642,-499.99,0.00010699,2]
[335911459,1724589031651,-156.4355,0.00010699,2]
[335911460,1724589031661,-454.1136,0.00010699,2]
[335911461,1724589031670,-7500.0,0.00010699,2]
[335911462,1724589031680,-4412.8173,0.000107,2]
[335911463,1724589031689,-1000.0,0.000107,2]
[335911464,1724589031699,-500.0,0.000107,2]
[335911465,1724589031709,-2972.6467,0.000107,2]
[335911466,1724589031718,-98732.1017,0.000107,2]
[335911467,1724589031727,-139500.6756,0.000107,2]
[335911468,1724589031737,-151.98228612,0.000107,2]
[335911469,1724589031747,-2170.8615439,0.000107,2]
[335911470,1724589031757,-707.0328,0.0001073,2]
[335911471,1724589031771,-174.43634856,0.00010752,2]
[335911472,1724589031781,-707.0328,0.0001077,2]
[335911473,1724589031790,-500.0,0.00010773,2]
[335911474,1724589031801,-150.93,0.0001079,2]
[335911475,1724589031811,-160.81649737,0.00010797,2]
[335911476,1724589031820,-166285.95552308,0.00010799,2]
[335911477,1724589031831,-151.0,0.00010799,2]
[335911478,1724589031841,-151.0,0.00010799,2]
[335911479,1724589031851,-151.0,0.00010799,2]
[335911480,1724589031860,-151.0,0.00010799,2]
[335911482,1724589031870,-151.0,0.00010799,2]
[335911484,1724589031879,-151.0,0.00010799,2]
[335911486,1724589031888,-151.0,0.00010799,2]
[335911488,1724589031898,-151.0,0.00010799,2]
[335911490,1724589031910,-151.0,0.00010799,2]
[335911492,1724589031922,-58572.71210631,0.000108,2]
[335911499,1724589031956,-2073.79125364,0.000108,2]
[335911502,1724589031967,-3749.97599785,0.000108,2]
[335911506,1724589031982,-803.55527791,0.000108,2]
[335911510,1724589031997,-337.01913656,0.000108,2]
[335911513,1724589032009,-45580.91067277,0.000108,2]
[335911517,1724589032021,-653.26372546,0.000108,2]
[335911519,1724589032032,-4289.95371302,0.000108,2]
[335911546,1724589037564,-1282.87351521,0.000108,2]
[335911547,1724589037576,-3962.55749776,0.000108,2]
[335911548,1724589037587,-2497.15239399,0.000108,2]
[335911549,1724589037598,-430.26739645,0.000108,2]
[335911550,1724589037610,-3477.68380256,0.000108,2]
[335911551,1724589037678,-10252.81543227,0.000108,2]
[335911552,1724589037732,-8323.234,0.000108,2]
[335911553,1724589037747,-315.16164704,0.000108,2]
[335911554,1724589037794,-659.75132017,0.000108,2]
[335911569,1724589038450,500.0,0.0001,2]
[335911579,1724589041164,-250.0,0.000108,2]
[335911580,1724589041189,-347886.49482023,0.000108,2]
[335911581,1724589041207,-1047.09835683,0.000108,2]
[335911598,1724589045571,-493.93029625,0.00010009,2]
[335911599,1724589045628,-832.95724743,0.00010009,2]
[335911601,1724589053435,500.0,0.0001,2]
[335911602,1724589120696,571.26,9.989e-05,2]
[335911608,1724589192691,500.0,0.00024657,120]
[335911609,1724589192947,500.0,0.00025342,120]
[335911610,1724589193216,500.0,0.00026027,120]
[335911611,1724589193466,500.0,0.00026712,120]
[335911612,1724589197979,500.0,9.909e-05,2]
[335911613,1724589198372,500.0,0.00024932,120]
[335911614,1724589202820,200.0,0.000255,120]
[335911615,1724589245013,287.38,8.219e-05,2]
[335911616,1724589429874,155.31499189,0.0001,2]
[335911617,1724589445689,672.06,9.978e-05,2]
[335911618,1724589566066,186.66,9.971e-05,2]
[335911619,1724589630334,285.63,9.978e-05,2]
[335911620,1724589640839,156.69,9.978e-05,2]
[335911624,1724589674058,1235.62,9.954e-05,2]
[335911626,1724589700690,2000.0,3.6e-05,120]
[335911629,1724589709401,250.0,9.979e-05,2]
[335911633,1724589723950,2000.0,3.6e-05,120]
[335911634,1724589725615,535.08217983,3.6e-05,120]
[335911636,1724589745567,531.59072155,5e-05,2]
[335911638,1724589778641,500.0,0.00024657,120]
[335911639,1724589778918,500.0,0.00025342,120]
[335911640,1724589779164,500.0,0.00026027,120]
[335911641,1724589779417,500.0,0.00026712,120]
[335911642,1724589868589,3475.55,9.961e-05,2]
[335911643,1724589898043,1050.0,0.0001,2]
[335911644,1724589961047,285.32,8.219e-05,2]
[335911645,1724589984482,500.0,0.0001,2]
[335911646,1724590004160,365.9057376,9.999e-05,2]
[335911647,1724590060619,1000.0,9.952e-05,2]
[335911648,1724590091058,155.0,9.999e-05,2]
[335911660,1724590121076,155.0,9.999e-05,2]
[335911673,1724590142831,387.9,9.97e-05,2]
[335911674,1724590154173,171.68,9.983e-05,2]
[335911684,1724590159918,306.9434504,9.999e-05,2]
[335911685,1724590169001,186.68,9.979e-05,2]
[335911691,1724590194658,316.90113525,9.999e-05,2]
[335911698,1724590231685,-1719.93509032,0.00010009,2]
[335911700,1724590231696,-3405.26733197,0.00010009,2]
[335911702,1724590231707,-300.0,0.00010025,2]
[335911704,1724590231717,-285.32,0.00010473,2]
[335911706,1724590231729,-49665.9738,0.000106,2]
[335911708,1724590231741,-8000.6901,0.000106,2]
[335911709,1724590231752,-150.0,0.00010685,2]
[335911710,1724590231765,-204.26455,0.0001069,2]
[335911711,1724590231777,-174.43634856,0.000107,2]
[335911712,1724590231789,-729.6551,0.000107,2]
[335911713,1724590231802,-345.79611589,0.000107,2]
[335911714,1724590231812,-359.51329334,0.000107,2]
[335911715,1724590231824,-531.0,0.000108,2]
[335911716,1724590231836,-178685.17133606,0.000108,2]
[335911717,1724590231867,-547.1470178,0.000108,2]
[335911718,1724590231881,-295.33202042,0.000108,2]
[335911719,1724590231895,-552.99499924,0.000108,2]
[335911720,1724590231918,-326.80050338,0.000108,2]
[335911721,1724590231932,-323.19949662,0.000108,2]
[335911723,1724590237734,-1372.2,0.000108,2]
[335911724,1724590237749,-870.0340065,0.000108,2]
[335911725,1724590237789,-1922.25770116,0.000108,2]
[335911726,1724590238004,-544.68019634,0.000108,2]
[335911729,1724590239982,-49299.735953,0.000108,2]
[335911730,1724590240000,-1289.90576999,0.000108,2]
[335911731,1724590240096,-667.0402393,0.000108,2]
[335911732,1724590240109,-1537.40751302,0.000108,2]
[335911733,1724590240122,-250.10762266,0.000108,2]
[335911740,1724590245817,-40048.41019346,0.000108,2]
[335911741,1724590245897,-2925.7355855,0.000108,2]
[335911742,1724590245910,-3559.9489424,0.000108,2]
[335911746,1724590271230,200.0,9.9e-05,3]
[335911747,1724590273195,500.0,0.0001,3]
[335911753,1724590327546,155.0,0.0001,2]
[335911754,1724590400335,500.0,9.92e-05,2]
[335911755,1724590401065,500.0,0.00024932,120]
[335911756,1724590405096,200.0,0.00025,120]
[335911757,1724590413402,500.0,0.00024657,120]
[335911758,1724590413651,500.0,0.00025342,120]
[335911759,1724590413914,500.0,0.00026027,120]
[335911760,1724590414200,500.0,0.00026712,120]
[335911762,1724590615774,200.0,9.885e-05,2]
[335911763,1724590628113,316.49,9.885e-05,2]
[335911765,1724590633763,448.36,9.909e-05,2]
[335911769,1724590657809,291.52,8.219e-05,2]
[335911772,1724590685402,325.33,9.871e-05,2]
[335911776,1724590932425,15535.94916928,9.999e-05,2]
[335911777,1724590982826,1014.88,0.00024657,120]
[335911778,1724590983110,1014.88,0.00025342,120]
[335911779,1724590983435,1014.88,0.00026027,120]
[335911780,1724590983716,1014.88,0.00026712,120]
[335911781,1724591111572,158.24,9.914e-05,2]
[335911782,1724591125891,840.0,9.937e-05,2]
[335911783,1724591144239,155.07492395,9.999e-05,2]
[335911784,1724591153070,156.69,9.947e-05,2]
[335911785,1724591188325,287.71,8.219e-05,2]
[335911786,1724591327192,174.67,9.94e-05,2]
[335911792,1724591331126,156.4272345,9.999e-05,2]
[335911807,1724591420137,155.0,9.999e-05,2]
[335911820,1724591431912,-3406.47446305,0.00010009,2]
[335911821,1724591431923,-287.71,0.00010474,2]
[335911822,1724591431933,-1607.94443947,0.00010599,2]
[335911823,1724591431942,-3769.64887581,0.000106,2]
[335911824,1724591431955,-1106.69302419,0.000106,2]
[335911825,1724591431966,-612.28588147,0.000106,2]
[335911826,1724591431978,-1676.12452515,0.000106,2]
[335911827,1724591431989,-577.5783648,0.000106,2]
[335911828,1724591432004,-424.51363552,0.000106,2]
[335911829,1724591432030,-2331.32555382,0.000106,2]
[335911830,1724591432088,-293.41476327,0.000106,2]
[335911831,1724591432100,-2248.6741294,0.000106,2]
[335911832,1724591432111,-9642.15249262,0.000106,2]
[335911833,1724591432123,-2852.7448324,0.000106,2]
[335911834,1724591432135,-1849.2602734,0.000106,2]
[335911835,1724591432155,-1324.35936226,0.000106,2]
[335911836,1724591432166,-446.00727919,0.000106,2]
[335911837,1724591432176,-2509.81260205,0.000106,2]
[335911838,1724591432188,-1152.75568561,0.000106,2]
[335911839,1724591432199,-10300.21642896,0.000106,2]
[335911840,1724591432213,-628.42,0.000106,2]
[335911843,1724591437940,-1886.88,0.000106,2]
[335911844,1724591437952,-879.14563992,0.000106,2]
[335911845,1724591437964,-12212.22040255,0.000106,2]
[335911846,1724591437976,-419.26667841,0.000106,2]
[335911847,1724591437987,-507.30025772,0.000106,2]
[335911848,1724591437998,-6063.57976479,0.000106,2]
[335911849,1724591438009,-251.56998752,0.000106,2]
[335911850,1724591438021,-702.12138426,0.000106,2]
[335911851,1724591438032,-410.86713781,0.000106,2]
[335911852,1724591438043,-1120.66502401,0.000106,2]
[335911853,1724591438065,-342.52801309,0.000106,2]
[335911854,1724591438075,-5181.74612354,0.000106,2]